fUSD/lending_fUSD_20250526
["ID","MTS","AMOUNT","RATE_DAILY","PERIOD"]
[362405283,1748254160150,-200.0,0.000171,2]
[362405284,1748254231652,-200.0,0.000181,2]
[362405285,1748254231663,-178.72858244,0.00018357,2]
[362405286,1748254231673,-1200.0,0.00018366,2]
[362405287,1748254231683,-881.39312256,0.00018367,2]
[362405289,1748254237664,-612.375005,0.00018367,2]
[362405290,1748254237677,-1133.85167639,0.00018367,2]
[362405297,1748254239753,-5457.99019605,0.00018367,2]
[362405298,1748254239762,-300.0,0.00018419,2]
[362405299,1748254239772,-26525.62,0.0001842,2]
[362405300,1748254239781,-1000.0,0.00018445,2]
[362405301,1748254239790,-550.92,0.00018457,2]
[362405302,1748254239800,-200.0,0.00018506,2]
[362405303,1748254239810,-1007.46,0.00018535,2]
[362405304,1748254239819,-250.0,0.00018557,2]
[362405305,1748254239828,-578.43,0.000186,2]
[362405306,1748254239837,-200.0,0.00018622,2]
[362405307,1748254239847,-345.52759011,0.0001863,2]
[362405308,1748254239856,-9546.67,0.00018631,2]
[362405309,1748254239865,-1040.59,0.00018715,2]
[362405310,1748254239875,-339.0,0.00018785,2]
[362405311,1748254239884,-1362.01,0.00018808,2]
[362405312,1748254239893,-166.97,0.00018966,2]
[362405313,1748254239903,-350.0,0.00019,2]
[362405314,1748254239912,-1000.0,0.00019022,2]
[362405315,1748254239921,-23900.0,0.00019024,2]
[362405316,1748254239930,-721.8,0.00019073,2]
[362405317,1748254239939,-178.72858242,0.00019078,2]
[362405318,1748254239949,-363.32,0.00019086,2]
[362405319,1748254239958,-200.0,0.000191,2]
[362405320,1748254239967,-656.0,0.00019176,2]
[362405321,1748254239977,-207.403333,0.00019178,2]
[362405322,1748254239986,-154.601241,0.00019178,2]
[362405323,1748254239996,-151.702084,0.00019178,2]
[362405324,1748254240005,-153.681669,0.00019178,2]
[362405325,1748254240014,-213.479483,0.00019178,2]
[362405326,1748254240023,-213.479483,0.00019178,2]
[362405327,1748254240032,-213.479483,0.00019178,2]
[362405328,1748254240042,-151.0,0.00019233,2]
[362405329,1748254240051,-151.0,0.00019252,2]
[362405330,1748254240061,-151.0,0.00019271,2]
[362405331,1748254240070,-200.0,0.00019274,2]
[362405332,1748254240080,-151.0,0.00019289,2]
[362405333,1748254240089,-167.48,0.00019292,2]
[362405334,1748254240098,-151.702084,0.00019369,2]
[362405335,1748254240108,-213.479483,0.00019369,2]
[362405336,1748254240117,-151.702084,0.00019726,2]
[362405337,1748254240126,-213.479483,0.00019726,2]
[362405338,1748254240135,-213.479483,0.00019726,2]
[362405339,1748254240144,-178.72858242,0.00019799,2]
[362405340,1748254240154,-1521.59583916,0.00019836,2]
[362405341,1748254240163,-5715.26879613,0.00019895,2]
[362405342,1748254240172,-537.75580281,0.00019898,2]
[362405343,1748254240182,-151.702084,0.00019899,2]
[362405344,1748254240191,-213.479483,0.00019899,2]
[362405345,1748254240201,-213.479483,0.00019899,2]
[362405346,1748254240210,-213.479483,0.00019899,2]
[362405347,1748254240220,-452.74343758,0.000199,2]
[362405348,1748254240230,-213.479483,0.00019921,2]
[362405349,1748254240240,-176.56517858,0.00019973,2]
[362405350,1748254240249,-500.0,0.00019973,2]
[362405351,1748254240258,-501.12588274,0.00019973,2]
[362405352,1748254240267,-1085.45,0.00019988,2]
[362405353,1748254240277,-151.702084,0.00019989,2]
[362405354,1748254240286,-213.479483,0.00019989,2]
[362405355,1748254240296,-213.479483,0.00019992,2]
[362405356,1748254240306,-213.479483,0.00019992,2]
[362405357,1748254240315,-151.702084,0.00019993,2]
[362405358,1748254240325,-153.681669,0.00019993,2]
[362405359,1748254240334,-213.479483,0.00019993,2]
[362405360,1748254240344,-213.479483,0.00019994,2]
[362405361,1748254240354,-213.479483,0.00019994,2]
[362405362,1748254240364,-420.0,0.00019995,2]
[362405363,1748254240373,-475.36,0.00019995,2]
[362405364,1748254240383,-420.0,0.00019995,2]
[362405365,1748254240393,-435.43,0.00019995,2]
[362405366,1748254240402,-420.0,0.00019995,2]
[362405367,1748254240413,-420.0,0.00019995,2]
[362405368,1748254240424,-464.21,0.00019995,2]
[362405369,1748254240433,-420.0,0.00019995,2]
[362405370,1748254240443,-420.0,0.00019995,2]
[362405371,1748254240452,-420.0,0.00019995,2]
[362405372,1748254240463,-476.29,0.00019995,2]
[362405373,1748254240472,-420.0,0.00019995,2]
[362405374,1748254240482,-420.0,0.00019995,2]
[362405375,1748254240493,-423.05468877,0.00019995,2]
[362405376,1748254240503,-420.0,0.00019995,2]
[362405377,1748254240512,-420.0,0.00019995,2]
[362405378,1748254240522,-420.0,0.00019995,2]
[362405379,1748254240532,-420.0,0.00019995,2]
[362405380,1748254240541,-420.0,0.00019995,2]
[362405381,1748254240740,-420.0,0.00019995,2]
[362405382,1748254240752,-489.74,0.00019995,2]
[362405383,1748254240762,-420.0,0.00019995,2]
[362405384,1748254240772,-420.0,0.00019995,2]
[362405385,1748254240782,-420.0,0.00019995,2]
[362405386,1748254240793,-420.0,0.00019995,2]
[362405387,1748254240808,-421.90871639,0.00019995,2]
[362405388,1748254240818,-420.0,0.00019995,2]
[362405389,1748254240827,-521.18,0.00019995,2]
[362405390,1748254240837,-420.0,0.00019995,2]
[362405391,1748254240847,-420.0,0.00019995,2]
[362405392,1748254240858,-422.78780178,0.00019995,2]
[362405393,1748254240867,-420.0,0.00019995,2]
[362405394,1748254240877,-420.0,0.00019995,2]
[362405395,1748254240887,-420.0,0.00019995,2]
[362405396,1748254240898,-420.0,0.00019995,2]
[362405397,1748254240908,-420.0,0.00019995,2]
[362405398,1748254240918,-508.35279326,0.00019995,2]
[362405399,1748254240928,-420.43854413,0.00019995,2]
[362405400,1748254240937,-423.05615952,0.00019995,2]
[362405401,1748254240947,-535.13,0.00019995,2]
[362405402,1748254240956,-420.0,0.00019995,2]
[362405403,1748254240967,-425.16047823,0.00019995,2]
[362405404,1748254240976,-420.0,0.00019995,2]
[362405405,1748254240985,-420.0,0.00019995,2]
[362405406,1748254240995,-420.0,0.00019995,2]
[362405407,1748254241005,-420.0,0.00019995,2]
[362405408,1748254241014,-420.0,0.00019995,2]
[362405409,1748254241024,-420.0,0.00019995,2]
[362405410,1748254241033,-420.0,0.00019995,2]
[362405411,1748254241043,-422.2113154,0.00019995,2]
[362405412,1748254241052,-420.0,0.00019995,2]
[362405413,1748254241062,-422.35011772,0.00019995,2]
[362405414,1748254241071,-426.84482965,0.00019995,2]
[362405415,1748254241082,-423.65638042,0.00019995,2]
[362405416,1748254241091,-420.0,0.00019995,2]
[362405417,1748254241107,-420.0,0.00019995,2]
[362405418,1748254241117,-420.0,0.00019995,2]
[362405419,1748254241126,-420.0,0.00019995,2]
[362405420,1748254241135,-420.0,0.00019995,2]
[362405421,1748254241146,-420.0,0.00019995,2]
[362405422,1748254241155,-420.0,0.00019995,2]
[362405423,1748254241165,-420.0,0.00019995,2]
[362405424,1748254241174,-420.0,0.00019995,2]
[362405425,1748254241182,-420.0,0.00019995,2]
[362405426,1748254241191,-420.0,0.00019995,2]
[362405427,1748254241200,-420.0,0.00019995,2]
[362405428,1748254241210,-462.66,0.00019995,2]
[362405429,1748254241219,-420.0,0.00019995,2]
[362405430,1748254241228,-420.0,0.00019995,2]
[362405431,1748254241238,-420.0,0.00019995,2]
[362405432,1748254241247,-420.0,0.00019995,2]
[362405433,1748254241256,-423.94941389,0.00019995,2]
[362405434,1748254241265,-421.60998222,0.00019995,2]
[362405435,1748254241274,-420.95412191,0.00019995,2]
[362405436,1748254241284,-421.45662185,0.00019995,2]
[362405437,1748254241293,-420.83998629,0.00019995,2]
[362405438,1748254241302,-500.0,0.00019995,2]
[362405439,1748254241311,-420.0,0.00019995,2]
[362405440,1748254241320,-500.0,0.00019995,2]
[362405441,1748254241329,-420.87799977,0.00019995,2]
[362405442,1748254241338,-423.18904792,0.00019995,2]
[362405443,1748254241347,-435.58841758,0.00019995,2]
[362405444,1748254241356,-421.64170346,0.00019995,2]
[362405445,1748254241365,-423.82207257,0.00019995,2]
[362405446,1748254241374,-421.68278255,0.00019995,2]
[362405447,1748254241383,-422.69854678,0.00019995,2]
[362405448,1748254241392,-500.0,0.00019995,2]
[362405449,1748254241401,-555.90422923,0.00019995,2]
[362405450,1748254241410,-424.23563339,0.00019995,2]
[362405451,1748254241423,-420.92180084,0.00019995,2]
[362405452,1748254241432,-508.48994347,0.00019995,2]
[362405453,1748254241441,-500.0,0.00019995,2]
[362405454,1748254241449,-421.33088923,0.00019995,2]
[362405455,1748254241459,-500.0,0.00019995,2]
[362405456,1748254241468,-420.33751721,0.00019995,2]
[362405457,1748254241477,-421.72656608,0.00019995,2]
[362405458,1748254241486,-420.0,0.00019995,2]
[362405459,1748254241497,-474.38944155,0.00019995,2]
[362405460,1748254241506,-422.18093693,0.00019995,2]
[362405461,1748254241516,-430.71793083,0.00019995,2]
[362405462,1748254241525,-512.97551987,0.00019995,2]
[362405463,1748254241534,-420.0,0.00019995,2]
[362405464,1748254241543,-420.0,0.00019995,2]
[362405465,1748254241552,-426.23453116,0.00019995,2]
[362405466,1748254241562,-424.75852004,0.00019995,2]
[362405467,1748254241571,-501.86756908,0.00019995,2]
[362405468,1748254241580,-421.23779442,0.00019995,2]
[362405469,1748254241590,-420.0,0.00019995,2]
[362405470,1748254241600,-420.0,0.00019995,2]
[362405471,1748254241609,-464.54722933,0.00019995,2]
[362405472,1748254241618,-503.8562901,0.00019995,2]
[362405473,1748254241627,-420.0,0.00019995,2]
[362405474,1748254241636,-421.13065734,0.00019995,2]
[362405475,1748254241646,-432.28509115,0.00019995,2]
[362405476,1748254241655,-334.20719217,0.00019995,2]
[362405477,1748254241665,-441.12214281,0.00019995,2]
[362405478,1748254241674,-420.0,0.00019995,2]
[362405479,1748254241683,-420.0,0.00019995,2]
[362405480,1748254241693,-420.0,0.00019995,2]
[362405481,1748254241702,-420.0,0.00019995,2]
[362405482,1748254241712,-421.37,0.00019995,2]
[362405483,1748254241722,-490.0,0.00019995,2]
[362405484,1748254241731,-420.0,0.00019995,2]
[362405485,1748254241741,-420.0,0.00019995,2]
[362405486,1748254241752,-151.702084,0.00019997,2]
[362405487,1748254241762,-499.15421248,0.00019997,2]
[362405488,1748254241772,-420.0,0.00019997,2]
[362405489,1748254241782,-420.0,0.00019997,2]
[362405490,1748254241791,-420.0,0.00019997,2]
[362405491,1748254241800,-420.0,0.00019997,2]
[362405492,1748254241811,-420.0,0.00019997,2]
[362405493,1748254241820,-420.0,0.00019997,2]
[362405494,1748254241830,-420.0,0.00019997,2]
[362405495,1748254241839,-421.40866004,0.00019997,2]
[362405496,1748254241848,-181.65004279,0.00019997,2]
[362405497,1748254241858,-420.0,0.00019997,2]
[362405498,1748254241867,-427.832265,0.00019997,2]
[362405499,1748254241876,-420.0,0.00019997,2]
[362405500,1748254241886,-420.0,0.00019997,2]
[362405501,1748254241895,-420.0,0.00019997,2]
[362405502,1748254241905,-420.0,0.00019997,2]
[362405503,1748254241915,-420.0,0.00019997,2]
[362405504,1748254241924,-420.0,0.00019997,2]
[362405505,1748254241934,-420.0,0.00019997,2]
[362405506,1748254241944,-420.0,0.00019997,2]
[362405507,1748254241954,-420.0,0.00019997,2]
[362405508,1748254241964,-420.0,0.00019997,2]
[362405509,1748254241973,-420.0,0.00019997,2]
[362405510,1748254241984,-420.0,0.00019997,2]
[362405511,1748254241994,-420.0,0.00019997,2]
[362405512,1748254242003,-500.0,0.00019997,2]
[362405513,1748254242013,-203.67700397,0.00019997,2]
[362405514,1748254242023,-312.83048871,0.00019997,2]
[362405515,1748254242032,-500.0,0.00019997,2]
[362405516,1748254242042,-330.87680813,0.00019997,2]
[362405517,1748254242051,-370.83809001,0.00019997,2]
[362405518,1748254242061,-584.47512407,0.00019997,2]
[362405519,1748254242070,-180.33519931,0.00019997,2]
[362405520,1748254242079,-500.0,0.00019997,2]
[362405521,1748254242089,-500.0,0.00019997,2]
[362405522,1748254242099,-500.0,0.00019997,2]
[362405523,1748254242108,-500.0,0.00019997,2]
[362405524,1748254242118,-500.0,0.00019997,2]
[362405525,1748254242127,-500.0,0.00019997,2]
[362405526,1748254242136,-500.0,0.00019997,2]
[362405527,1748254242146,-500.0,0.00019997,2]
[362405528,1748254242157,-500.0,0.00019997,2]
[362405529,1748254242168,-420.0,0.00019997,2]
[362405530,1748254242179,-420.0,0.00019997,2]
[362405531,1748254242188,-420.0,0.00019997,2]
[362405532,1748254242198,-420.0,0.00019997,2]
[362405533,1748254242207,-420.0,0.00019997,2]
[362405534,1748254242217,-420.0,0.00019997,2]
[362405535,1748254242233,-420.0,0.00019997,2]
[362405536,1748254242242,-420.0,0.00019997,2]
[362405537,1748254242255,-420.0,0.00019997,2]
[362405538,1748254242267,-420.0,0.00019997,2]
[362405539,1748254242277,-420.0,0.00019997,2]
[362405540,1748254242287,-420.0,0.00019997,2]
[362405541,1748254242297,-420.0,0.00019997,2]
[362405542,1748254242309,-420.0,0.00019997,2]
[362405543,1748254242319,-420.0,0.00019997,2]
[362405544,1748254242328,-420.0,0.00019997,2]
[362405545,1748254242337,-420.0,0.00019997,2]
[362405546,1748254242347,-420.0,0.00019997,2]
[362405547,1748254242357,-420.0,0.00019997,2]
[362405548,1748254242366,-420.0,0.00019997,2]
[362405549,1748254242382,-420.0,0.00019997,2]
[362405550,1748254242391,-420.69980096,0.00019997,2]
[362405551,1748254242401,-181.12065254,0.00019997,2]
[362405552,1748254242410,-420.0,0.00019997,2]
[362405553,1748254242424,-420.0,0.00019997,2]
[362405554,1748254242433,-420.0,0.00019997,2]
[362405555,1748254242442,-260.10292389,0.00019997,2]
[362405556,1748254242464,-420.0,0.00019997,2]
[362405557,1748254242475,-420.0,0.00019997,2]
[362405558,1748254242485,-420.0,0.00019997,2]
[362405559,1748254242495,-420.0,0.00019997,2]
[362405560,1748254242505,-420.0,0.00019997,2]
[362405561,1748254242516,-420.0,0.00019997,2]
[362405562,1748254242526,-420.0,0.00019997,2]
[362405563,1748254242536,-420.0,0.00019997,2]
[362405564,1748254242546,-420.0,0.00019997,2]
[362405565,1748254242555,-420.0,0.00019997,2]
[362405566,1748254242565,-420.0,0.00019997,2]
[362405567,1748254242574,-420.0,0.00019997,2]
[362405568,1748254242584,-420.0,0.00019997,2]
[362405569,1748254242594,-420.0,0.00019997,2]
[362405570,1748254242604,-420.0,0.00019997,2]
[362405571,1748254242613,-298.6993691,0.00019997,2]
[362405572,1748254242622,-461.08568095,0.00019997,2]
[362405573,1748254242632,-229.68932744,0.00019997,2]
[362405574,1748254242642,-420.0,0.00019997,2]
[362405575,1748254242651,-299.92,0.00019997,2]
[362405576,1748254242661,-529.26,0.00019997,2]
[362405577,1748254242670,-420.0,0.00019997,2]
[362405578,1748254242680,-420.0,0.00019997,2]
[362405579,1748254242689,-213.479483,0.00019997,2]
[362405580,1748254242699,-420.0,0.00019997,2]
[362405581,1748254242709,-420.0,0.00019997,2]
[362405582,1748254242720,-420.0,0.00019997,2]
[362405583,1748254242731,-551.06,0.00019997,2]
[362405584,1748254242741,-420.0,0.00019997,2]
[362405585,1748254242751,-420.0,0.00019997,2]
[362405586,1748254242761,-472.83028704,0.00019997,2]
[362405587,1748254242770,-420.0,0.00019997,2]
[362405588,1748254242779,-420.0,0.00019997,2]
[362405589,1748254242790,-420.0,0.00019997,2]
[362405590,1748254242799,-313.33592143,0.00019997,2]
[362405591,1748254242809,-420.0,0.00019997,2]
[362405592,1748254242818,-510.65598424,0.00019997,2]
[362405593,1748254242828,-420.0,0.00019997,2]
[362405594,1748254242838,-420.0,0.00019997,2]
[362405595,1748254242847,-420.0,0.00019997,2]
[362405596,1748254242856,-432.66,0.00019997,2]
[362405597,1748254242866,-420.0,0.00019997,2]
[362405598,1748254242876,-420.0,0.00019997,2]
[362405599,1748254242886,-420.0,0.00019997,2]
[362405600,1748254242895,-500.0,0.00019997,2]
[362405601,1748254242905,-420.0,0.00019997,2]
[362405602,1748254242914,-420.0,0.00019997,2]
[362405603,1748254242924,-420.0,0.00019997,2]
[362405604,1748254242933,-421.70582955,0.00019998,2]
[362405605,1748254242943,-543.94657558,0.00019998,2]
[362405606,1748254242952,-424.34747685,0.00019998,2]
[362405607,1748254242962,-421.27538257,0.00019998,2]
[362405608,1748254242972,-422.86470904,0.00019998,2]
[362405609,1748254242982,-420.0,0.00019998,2]
[362405610,1748254242991,-421.4847467,0.00019998,2]
[362405611,1748254243000,-421.92851231,0.00019998,2]
[362405612,1748254243010,-341.0367803,0.00019998,2]
[362405613,1748254243019,-428.32146073,0.00019998,2]
[362405614,1748254243029,-420.62222374,0.00019998,2]
[362405615,1748254243038,-420.92756809,0.00019998,2]
[362405616,1748254243047,-420.0,0.00019998,2]
[362405617,1748254243057,-420.0,0.00019998,2]
[362405618,1748254243066,-420.0,0.00019998,2]
[362405619,1748254243076,-420.0,0.00019998,2]
[362405620,1748254243085,-420.0,0.00019998,2]
[362405621,1748254243094,-422.12542061,0.00019998,2]
[362405622,1748254243104,-420.0,0.00019998,2]
[362405623,1748254243113,-420.0,0.00019998,2]
[362405624,1748254243123,-420.0,0.00019998,2]
[362405625,1748254243132,-420.0,0.00019998,2]
[362405626,1748254243142,-420.0,0.00019998,2]
[362405627,1748254243151,-420.0,0.00019998,2]
[362405628,1748254243161,-420.0,0.00019998,2]
[362405629,1748254243170,-420.0,0.00019998,2]
[362405630,1748254243179,-420.0,0.00019998,2]
[362405631,1748254243188,-420.0,0.00019998,2]
[362405632,1748254243198,-420.0,0.00019998,2]
[362405633,1748254243209,-420.0,0.00019998,2]
[362405634,1748254243219,-420.0,0.00019998,2]
[362405635,1748254243228,-420.0,0.00019998,2]
[362405636,1748254243237,-421.61569152,0.00019998,2]
[362405637,1748254243247,-420.0,0.00019998,2]
[362405638,1748254243257,-420.0,0.00019998,2]
[362405639,1748254243266,-421.33735717,0.00019998,2]
[362405640,1748254243275,-420.0,0.00019998,2]
[362405641,1748254243285,-420.0,0.00019998,2]
[362405642,1748254243294,-422.17876494,0.00019998,2]
[362405643,1748254243304,-420.0,0.00019998,2]
[362405644,1748254243313,-421.3420381,0.00019998,2]
[362405645,1748254243324,-366.3535236,0.00019998,2]
[362405646,1748254243334,-420.9394527,0.00019998,2]
[362405647,1748254243343,-220.05671938,0.00019998,2]
[362405648,1748254243354,-420.43668787,0.00019998,2]
[362405649,1748254243364,-337.0,0.00019998,2]
[362405650,1748254243375,-445.04147942,0.00019998,2]
[362405651,1748254243385,-420.0,0.00019998,2]
[362405652,1748254243396,-422.67007718,0.00019998,2]
[362405653,1748254243406,-421.9481917,0.00019998,2]
[362405654,1748254243417,-420.0,0.00019998,2]
[362405655,1748254243427,-420.0,0.00019998,2]
[362405656,1748254243437,-420.0,0.00019998,2]
[362405657,1748254243448,-420.0,0.00019998,2]
[362405658,1748254243460,-420.0,0.00019998,2]
[362405659,1748254243470,-420.0,0.00019998,2]
[362405660,1748254243480,-420.0,0.00019998,2]
[362405661,1748254243492,-211.38,0.00019998,2]
[362405662,1748254243502,-420.0,0.00019998,2]
[362405663,1748254243512,-420.0,0.00019998,2]
[362405664,1748254243523,-420.0,0.00019998,2]
[362405665,1748254243533,-420.0,0.00019998,2]
[362405666,1748254243542,-420.0,0.00019998,2]
[362405667,1748254243552,-420.0,0.00019998,2]
[362405668,1748254243562,-213.15314415,0.00019998,2]
[362405669,1748254243571,-420.0,0.00019998,2]
[362405670,1748254243581,-420.89177267,0.00019998,2]
[362405671,1748254243591,-420.0,0.00019998,2]
[362405672,1748254243600,-263.71266072,0.00019998,2]
[362405673,1748254243609,-490.68,0.00019998,2]
[362405674,1748254243618,-420.0,0.00019998,2]
[362405675,1748254243627,-420.0,0.00019998,2]
[362405676,1748254243636,-421.67810418,0.00019998,2]
[362405677,1748254243646,-420.0,0.00019998,2]
[362405678,1748254243655,-420.0,0.00019998,2]
[362405679,1748254243666,-420.97119509,0.00019998,2]
[362405680,1748254243675,-420.0,0.00019998,2]
[362405681,1748254243684,-434.77,0.00019998,2]
[362405682,1748254243694,-420.0,0.00019998,2]
[362405683,1748254243703,-420.0,0.00019998,2]
[362405684,1748254243714,-395.50290118,0.00019998,2]
[362405685,1748254243723,-420.0,0.00019998,2]
[362405686,1748254243733,-420.0,0.00019998,2]
[362405687,1748254243742,-470.31169908,0.00019998,2]
[362405688,1748254243751,-420.0,0.00019998,2]
[362405689,1748254243760,-420.0,0.00019998,2]
[362405690,1748254243769,-420.0,0.00019998,2]
[362405691,1748254243778,-420.0,0.00019998,2]
[362405692,1748254243788,-420.0,0.00019998,2]
[362405693,1748254243797,-420.0,0.00019998,2]
[362405694,1748254243806,-429.67878494,0.00019998,2]
[362405695,1748254243816,-490.71944115,0.00019998,2]
[362405696,1748254243826,-420.0,0.00019998,2]
[362405697,1748254243835,-420.0,0.00019998,2]
[362405698,1748254243844,-401.72844276,0.00019998,2]
[362405699,1748254243853,-420.0,0.00019998,2]
[362405700,1748254243863,-420.0,0.00019998,2]
[362405702,1748254243872,-420.0,0.00019998,2]
[362405703,1748254243881,-420.0,0.00019998,2]
[362405704,1748254243891,-430.98456131,0.00019998,2]
[362405705,1748254243900,-420.0,0.00019998,2]
[362405707,1748254243910,-420.0,0.00019998,2]
[362405708,1748254243919,-420.0,0.00019998,2]
[362405709,1748254243928,-421.53091351,0.00019998,2]
[362405710,1748254243938,-420.0,0.00019998,2]
[362405711,1748254243949,-420.0,0.00019998,2]
[362405712,1748254243960,-478.19,0.00019998,2]
[362405713,1748254243969,-420.0,0.00019998,2]
[362405714,1748254243979,-420.0,0.00019998,2]
[362405715,1748254243988,-433.81,0.00019998,2]
[362405716,1748254243997,-548.8,0.00019998,2]
[362405717,1748254244006,-420.0,0.00019998,2]
[362405718,1748254244017,-420.0,0.00019998,2]
[362405719,1748254244027,-420.0,0.00019998,2]
[362405720,1748254244037,-420.0,0.00019998,2]
[362405721,1748254244046,-420.0,0.00019998,2]
[362405722,1748254244056,-420.0,0.00019998,2]
[362405723,1748254244066,-420.0,0.00019998,2]
[362405724,1748254244076,-420.0,0.00019998,2]
[362405725,1748254244086,-422.31611854,0.00019998,2]
[362405726,1748254244096,-420.0,0.00019998,2]
[362405727,1748254244106,-432.54229215,0.00019998,2]
[362405728,1748254244115,-420.0,0.00019998,2]
[362405729,1748254244124,-566.26614438,0.00019998,2]
[362405730,1748254244134,-420.0,0.00019998,2]
[362405731,1748254244143,-185.74039813,0.00019998,2]
[362405732,1748254244152,-425.78076447,0.00019998,2]
[362405733,1748254244162,-420.0,0.00019998,2]
[362405734,1748254244172,-424.77754553,0.00019998,2]
[362405735,1748254244181,-421.20135633,0.00019998,2]
[362405736,1748254244190,-420.0,0.00019998,2]
[362405737,1748254244199,-420.0,0.00019998,2]
[362405738,1748254244208,-423.88923403,0.00019998,2]
[362405739,1748254244218,-420.0,0.00019998,2]
[362405740,1748254244227,-420.10968423,0.00019998,2]
[362405741,1748254244236,-427.17574138,0.00019998,2]
[362405742,1748254244246,-420.0,0.00019998,2]
[362405743,1748254244255,-383.96326647,0.00019998,2]
[362405744,1748254244264,-420.0,0.00019998,2]
[362405745,1748254244274,-420.0,0.00019998,2]
[362405746,1748254244283,-420.0,0.00019998,2]
[362405747,1748254244292,-428.75068974,0.00019998,2]
[362405748,1748254244301,-420.0,0.00019998,2]
[362405749,1748254244312,-416.9847232,0.00019998,2]
[362405750,1748254244322,-420.0,0.00019998,2]
[362405751,1748254244334,-425.79576725,0.00019998,2]
[362405752,1748254244344,-420.95501457,0.00019998,2]
[362405753,1748254244355,-423.06898878,0.00019998,2]
[362405754,1748254244367,-496.48,0.00019998,2]
[362405755,1748254244378,-478.6864233,0.00019998,2]
[362405756,1748254244389,-420.0,0.00019998,2]
[362405757,1748254244398,-420.0,0.00019998,2]
[362405758,1748254244407,-420.0,0.00019998,2]
[362405759,1748254244418,-420.0,0.00019998,2]
[362405760,1748254244429,-426.05499899,0.00019998,2]
[362405761,1748254244438,-420.0,0.00019998,2]
[362405762,1748254244447,-206.54721094,0.00019998,2]
[362405763,1748254244460,-424.11656375,0.00019998,2]
[362405764,1748254244470,-423.66635723,0.00019998,2]
[362405765,1748254244480,-420.0,0.00019998,2]
[362405766,1748254244494,-420.0,0.00019998,2]
[362405767,1748254244504,-423.53510793,0.00019998,2]
[362405768,1748254244514,-426.26885818,0.00019998,2]
[362405769,1748254244523,-547.75,0.00019998,2]
[362405770,1748254244532,-425.10688137,0.00019998,2]
[362405771,1748254244542,-425.51721422,0.00019998,2]
[362405772,1748254244551,-423.98892702,0.00019998,2]
[362405773,1748254244560,-420.0,0.00019998,2]
[362405774,1748254244570,-439.68829647,0.00019998,2]
[362405775,1748254244580,-467.37,0.00019998,2]
[362405776,1748254244589,-425.6897856,0.00019998,2]
[362405777,1748254244599,-489.13,0.00019998,2]
[362405778,1748254244608,-428.6041896,0.00019998,2]
[362405779,1748254244618,-423.29482818,0.00019998,2]
[362405780,1748254244628,-431.23873428,0.00019998,2]
[362405781,1748254244637,-420.0,0.00019998,2]
[362405782,1748254244647,-420.0,0.00019998,2]
[362405783,1748254244656,-420.0,0.00019998,2]
[362405784,1748254244666,-420.0,0.00019998,2]
[362405785,1748254244676,-420.0,0.00019998,2]
[362405786,1748254244686,-420.0,0.00019998,2]
[362405787,1748254244695,-515.99614019,0.00019998,2]
[362405788,1748254244705,-420.0,0.00019998,2]
[362405789,1748254244714,-449.18620554,0.00019998,2]
[362405790,1748254244724,-420.0,0.00019998,2]
[362405791,1748254244734,-420.0,0.00019998,2]